fUSD/lending_fUSD_20260511
["ID","MTS","AMOUNT","RATE_DAILY","PERIOD"]
[422002187,1778441441000,-150.0,0.00038387,7]
[422002190,1778441441000,-150.0,0.00038452,7]
[422002189,1778441441000,-1969.17257945,0.000384,5]
[422002184,1778441441000,-204.23738929,0.00038356,2]
[422002150,1778441441000,-150.0,0.00038129,7]
[422002199,1778441441000,-1253.284,0.00038829,2]
[422002192,1778441441000,-150.0,0.00038545,7]
[422002202,1778441441000,-150.0,0.00038857,7]
[422002200,1778441441000,-1099.5765,0.00038829,2]
[422002203,1778441441000,-1805.61,0.000389,14]
[422002201,1778441441000,-150.0,0.00038839,7]
[422002193,1778441441000,-150.0,0.00038581,7]
[422002191,1778441441000,-150.0,0.00038516,7]
[422002195,1778441441000,-150.0,0.0003871,7]
[422002197,1778441441000,-3642.98551677,0.00038799,2]
[422002198,1778441441000,-29993.46,0.000388,7]
[422002194,1778441441000,-150.0,0.00038645,7]
[422002196,1778441441000,-150.0,0.00038774,7]
[422002205,1778441441000,-150.0,0.00038903,7]
[422002204,1778441441000,-2000.0,0.000389,7]
[422002206,1778441441000,-150.0,0.00038909,7]
[422002207,1778441441000,-152.0,0.00038927,7]
[422002178,1778441441000,-500.0,0.00038356,2]
[422002176,1778441441000,-500.0,0.00038356,2]
[422002186,1778441441000,-235.67289,0.00038356,30]
[422002172,1778441441000,-574.41187752,0.00038356,2]
[422002147,1778441441000,-150.0,0.00038,7]
[422002177,1778441441000,-506.97378767,0.00038356,2]
[422002143,1778441441000,-150.0,0.00037806,7]
[422002145,1778441441000,-150.0,0.00037871,7]
[422002149,1778441441000,-150.0,0.00038065,7]
[422002142,1778441441000,-150.0,0.00037742,7]
[422002152,1778441441000,-150.0,0.00038182,7]
[422002162,1778441441000,-500.0,0.00038356,2]
[422002151,1778441441000,-166.66,0.00038144,2]
[422002154,1778441441000,-150.0,0.00038194,7]
[422002153,1778441441000,-436.0956,0.00038187,30]
[422002164,1778441441000,-500.0,0.00038356,2]
[422002155,1778441441000,-150.0,0.00038258,7]
[422002161,1778441441000,-500.0,0.00038356,60]
[422002140,1778441441000,-150.0,0.00037677,7]
[422002156,1778441441000,-150.0,0.00038286,7]
[422002160,1778441441000,-600.0,0.00038356,60]
[422002174,1778441441000,-500.0,0.00038356,2]
[422002175,1778441441000,-500.0,0.00038356,2]
[422002173,1778441441000,-500.0,0.00038356,2]
[422002168,1778441441000,-500.0,0.00038356,2]
[422002169,1778441441000,-500.0,0.00038356,2]
[422002171,1778441441000,-500.0,0.00038356,2]
[422002167,1778441441000,-500.0,0.00038356,2]
[422002166,1778441441000,-500.0,0.00038356,2]
[422002165,1778441441000,-500.0,0.00038356,2]
[422002158,1778441441000,-1788.94519216,0.00038329,120]
[422002159,1778441441000,-255.8025,0.00038351,2]
[422002170,1778441441000,-500.0,0.00038356,2]
[422002163,1778441441000,-500.0,0.00038356,2]
[422002220,1778441442000,-150.0,0.0003929,7]
[422002221,1778441442000,-255.8025,0.0003931,2]
[422002224,1778441442000,-151.0,0.00039397,14]
[422002223,1778441442000,-150.0,0.00039355,7]
[422002230,1778441442000,-150.0,0.00039636,7]
[422002228,1778441442000,-150.0,0.00039548,7]
[422002235,1778441442000,-150.0,0.00039871,7]
[422002229,1778441442000,-150.0,0.00039613,7]
[422002231,1778441442000,-150.0,0.00039677,7]
[422002219,1778441442000,-150.0,0.00039273,7]
[422002222,1778441442000,-330.0,0.00039342,60]
[422002227,1778441442000,-150.0,0.00039484,7]
[422002208,1778441442000,-152.0,0.00038927,7]
[422002216,1778441442000,-150.0,0.00039161,7]
[422002218,1778441442000,-150.0,0.00039226,7]
[422002217,1778441442000,-600.0,0.00039178,60]
[422002226,1778441442000,-150.0,0.00039429,7]
[422002214,1778441442000,-150.0,0.00039032,7]
[422002211,1778441442000,-152.0,0.00038989,7]
[422002212,1778441442000,-161.72,0.00039,30]
[422002215,1778441442000,-150.0,0.00039097,7]
[422002210,1778441442000,-152.0,0.00038989,7]
[422002209,1778441442000,-150.0,0.00038968,7]
[422002213,1778441442000,-3000.0,0.00039,30]
[422002233,1778441442000,-150.0,0.00039742,7]
[422002225,1778441442000,-150.0,0.00039419,7]
[422002232,1778441442000,-500.0,0.00039726,5]
[422002249,1778441442000,-383.02,0.00039999,120]
[422002238,1778441442000,-724.56657534,0.000399,2]
[422002234,1778441442000,-150.0,0.00039806,7]
[422002261,1778441442000,-600.0,0.0004,60]
[422002263,1778441442000,-175089.74891872,0.0004,120]
[422002260,1778441442000,-551.38,0.00039999,7]
[422002259,1778441442000,-1181.55819315,0.00039999,30]
[422002258,1778441442000,-383.02,0.00039999,120]
[422002257,1778441442000,-383.02,0.00039999,120]
[422002252,1778441442000,-383.02,0.00039999,120]
[422002255,1778441442000,-383.02,0.00039999,120]
[422002256,1778441442000,-383.02,0.00039999,120]
[422002262,1778441442000,-150.0,0.0004,7]
[422002253,1778441442000,-383.02,0.00039999,120]
[422002251,1778441442000,-383.02,0.00039999,120]
[422002254,1778441442000,-383.02,0.00039999,120]
[422002245,1778441442000,-150.0,0.00039935,7]
[422002250,1778441442000,-383.02,0.00039999,120]
[422002237,1778441442000,-233.190934,0.000399,10]
[422002240,1778441442000,-6160.03591306,0.000399,15]
[422002236,1778441442000,-294.61569208,0.000399,2]
[422002247,1778441442000,-180.77649535,0.0003999,7]
[422002248,1778441442000,-151.0,0.00039997,14]
[422002239,1778441442000,-195.06796117,0.000399,8]
[422002242,1778441442000,-184.47475161,0.000399,2]
[422002246,1778441442000,-152.0,0.00039985,30]
[422002243,1778441442000,-2447.95655886,0.000399,2]
[422002244,1778441442000,-280.41646029,0.00039924,2]
[422002241,1778441442000,-373.71923582,0.000399,2]
[422002285,1778441443000,-433.97665011,0.00038356,2]
[422002282,1778441443000,-180.33,0.00027397,30]
[422002280,1778441443000,-180.32,0.00026575,7]
[422002283,1778441443000,-500.0,0.00038356,2]
[422002291,1778441443000,-500.0,0.00038356,2]
[422002281,1778441443000,-175.18,0.00027397,7]
[422002278,1778441443000,-233.57,0.00026117,2]
[422002277,1778441443000,-180.32,0.00026027,7]
[422002276,1778441443000,-503.0,0.00025986,3]
[422002275,1778441443000,-180.32,0.00024658,2]
[422002273,1778441443000,-503.0,0.00024397,2]
[422002279,1778441443000,-180.32,0.00026163,2]
[422002286,1778441443000,-66.02334989,0.00038356,2]
[422002274,1778441443000,-175.18,0.00024658,2]
[422002284,1778441443000,-500.0,0.00038356,2]
[422002287,1778441443000,-500.0,0.00038356,2]
[422002294,1778441443000,-500.0,0.00038356,2]
[422002300,1778441443000,-10947.04491613,0.0004,120]
[422002299,1778441443000,-544.12867111,0.0004,120]
[422002297,1778441443000,-106.50156111,0.00038356,30]
[422002296,1778441443000,-235.67289,0.00038356,30]
[422002298,1778441443000,-129.17132889,0.00038356,30]
[422002293,1778441443000,-500.0,0.00038356,2]
[422002292,1778441443000,-500.0,0.00038356,2]
[422002288,1778441443000,-500.0,0.00038356,2]
[422002290,1778441443000,-500.0,0.00038356,2]
[422002295,1778441443000,-176.179199,0.00038356,2]
[422002289,1778441443000,-500.0,0.00038356,2]
[422002311,1778441446000,-500.0,0.00028767,120]
[422002313,1778441446000,-500.0,0.00029753,120]
[422002314,1778441446000,-500.0,0.0003074,120]
[422002317,1778441446000,-503.0,0.00033929,11]
[422002309,1778441446000,-3539.0,0.00024413,2]
[422002308,1778441446000,-2153.21906251,0.00021413,2]
[422002307,1778441446000,-713.165178,0.00021413,2]
[422002306,1778441446000,-672.61575949,0.00021413,2]
[422002315,1778441446000,-503.0,0.00030752,8]
[422002312,1778441446000,-503.0,0.00029163,6]
[422002316,1778441446000,-503.0,0.00032341,10]
[422002310,1778441446000,-503.0,0.00027575,5]
[422002325,1778441446000,-719.28,0.0003999,10]
[422002329,1778441446000,-895.8013693,0.0004,120]
[422002327,1778441446000,-65833.93119405,0.0004,120]
[422002323,1778441446000,-152.0,0.00039859,7]
[422002321,1778441446000,-503.0,0.00038695,16]
[422002328,1778441446000,-8491.53235752,0.0004,120]
[422002320,1778441446000,-503.0,0.00037106,15]
[422002322,1778441446000,-2428.65701118,0.00038799,2]
[422002326,1778441446000,-7644.31991476,0.0004,120]
[422002319,1778441446000,-204.02401155,0.00036939,2]
[422002324,1778441446000,-152.0,0.00039859,7]
[422002318,1778441446000,-503.0,0.00035518,13]
[422002332,1778441461000,2500.0,0.00026857,120]
[422002331,1778441461000,2500.0,0.00023554,120]
[422002333,1778441466000,166.88945014,0.00023554,120]
[422002335,1778442623000,158.36,7.307e-05,2]
[422002337,1778442623000,158.36,9.062e-05,2]
[422002336,1778442623000,158.36,8.184e-05,2]
[422002338,1778442624000,158.36,9.939e-05,2]
[422002339,1778442624000,158.36,0.00010817,2]
[422002357,1778442633000,-300.0,0.00014524,2]
[422002360,1778442633000,-4723.4735534,0.00014525,2]
[422002361,1778442633000,-4016.76444638,0.00014525,2]
[422002356,1778442633000,-166.66,0.00014462,2]
[422002355,1778442633000,-158.36,0.00014327,2]
[422002354,1778442633000,-200.0,0.00014327,2]
[422002352,1778442633000,-152.0,0.00014221,2]
[422002353,1778442633000,-152.0,0.00014225,2]
[422002351,1778442633000,-166.66,0.00014164,2]
[422002350,1778442633000,-250.0,0.00014,2]
[422002349,1778442633000,-871.54149594,0.00013916,2]
[422002348,1778442633000,-201.3922352,0.00013834,2]
[422002346,1778442633000,-90.29171645,0.00013449,2]
[422002344,1778442633000,-158.36,0.00011694,2]
[422002345,1778442633000,-158.36,0.00012572,2]
[422002347,1778442633000,-68.06828355,0.00013449,2]
[422002358,1778442633000,-300.0,0.00014524,2]
[422002373,1778442633000,-206.23376171,0.00014798,2]
[422002362,1778442633000,-1053.71656762,0.00014525,2]
[422002359,1778442633000,-1200.0,0.00014524,2]
[422002376,1778442633000,-500.0,0.00014798,2]
[422002377,1778442633000,-617.33085502,0.00014798,2]
[422002378,1778442633000,-500.0,0.00014798,2]
[422002374,1778442633000,-500.0,0.00014798,2]
[422002370,1778442633000,-2054.0642032,0.00014699,2]
[422002371,1778442633000,-166.66,0.0001476,2]
[422002375,1778442633000,-500.0,0.00014798,2]
[422002364,1778442633000,-123.95992166,0.00014525,2]
[422002367,1778442633000,-1577.09,0.000146,2]
[422002368,1778442633000,-2500.0,0.00014699,2]
[422002366,1778442633000,-58343.5483,0.000146,2]
[422002372,1778442633000,-500.0,0.00014798,2]
[422002365,1778442633000,-6075.176,0.000146,2]
[422002369,1778442633000,-150.0,0.00014699,2]
[422002363,1778442633000,-761.65659094,0.00014525,2]
[422002411,1778442634000,-214.7734975,0.00019085,2]
[422002412,1778442634000,-2000.0,0.00019851,2]
[422002416,1778442634000,-5544.03232175,0.00020599,2]
[422002413,1778442634000,-167.0,0.0002,2]
[422002414,1778442634000,-3166.0,0.0002,2]
[422002420,1778442634000,-503.0,0.00022792,2]
[422002417,1778442634000,-740.37,0.00021273,2]
[422002419,1778442634000,-624.0,0.00022792,2]
[422002409,1778442634000,-5544.03232175,0.00017699,2]
[422002410,1778442634000,-495.62268588,0.00018492,2]
[422002408,1778442634000,-2054.0642032,0.0001761,2]
[422002415,1778442634000,-2054.0642032,0.00020521,2]
[422002421,1778442634000,-1222.0,0.00022792,2]
[422002432,1778442634000,-192.84,0.00024658,2]
[422002428,1778442634000,-1000.0,0.00024658,2]
[422002425,1778442634000,-3636.78,0.00024174,2]
[422002422,1778442634000,-2054.0642032,0.00023433,2]
[422002426,1778442634000,-503.0,0.00024397,2]
[422002433,1778442634000,-2000.0,0.00024814,2]
[422002418,1778442634000,-2000.0,0.00022332,2]
[422002423,1778442634000,-5544.03232175,0.00023499,2]
[422002429,1778442634000,-179.46,0.00024658,2]
[422002430,1778442634000,-191.17,0.00024658,2]
[422002431,1778442634000,-177.05,0.00024658,2]
[422002445,1778442634000,-236.07,0.00026905,2]
[422002435,1778442634000,-165.63,0.00025434,2]
[422002446,1778442634000,-239.27,0.00026981,2]
[422002424,1778442634000,-489.61,0.00024174,2]
[422002427,1778442634000,-200.0,0.00024483,2]
[422002397,1778442634000,-166.66,0.00015655,2]
[422002401,1778442634000,-769.92911676,0.00015665,2]
[422002434,1778442634000,-161.0,0.0002538,2]
[422002384,1778442634000,-500.0,0.00014899,2]
[422002379,1778442634000,-500.0,0.00014798,2]
[422002381,1778442634000,-5544.03232179,0.00014799,2]
[422002383,1778442634000,-500.0,0.00014899,2]
[422002382,1778442634000,-500.0,0.00014899,2]
[422002380,1778442634000,-224205.8157,0.00014799,2]
[422002386,1778442634000,-500.0,0.00014899,2]
[422002387,1778442634000,-189.83929851,0.00014899,2]
[422002389,1778442634000,-460.48202271,0.000149,2]
[422002390,1778442634000,-2341.9,0.00014966,2]
[422002385,1778442634000,-500.0,0.00014899,2]
[422002388,1778442634000,-161.17831685,0.00014899,2]
[422002393,1778442634000,-500.0,0.00014999,2]
[422002395,1778442634000,-250.0,0.00015217,2]
[422002391,1778442634000,-500.0,0.00014999,2]
[422002392,1778442634000,-500.0,0.00014999,2]
[422002394,1778442634000,-166.66,0.00015058,2]
[422002396,1778442634000,-166.66,0.00015357,2]
[422002398,1778442634000,-500.0,0.00015665,2]
[422002400,1778442634000,-1134.60857358,0.00015665,2]
[422002399,1778442634000,-162.49380563,0.00015665,2]
[422002402,1778442634000,-9331.69,0.0001596,2]
[422002407,1778442634000,-720.0,0.00017575,2]
[422002404,1778442634000,-1089.83,0.00016393,2]
[422002405,1778442634000,-150.0,0.00016531,2]
[422002406,1778442634000,-1379.03532093,0.00016599,2]
[422002403,1778442634000,-1680.0,0.00015977,2]
[422002439,1778442634000,-624.0,0.00025792,2]
[422002481,1778442634000,-155.0,0.00031527,30]
[422002437,1778442634000,-489.61,0.00025786,2]
[422002480,1778442634000,-1000.0,0.000315,7]
[422002474,1778442634000,-500.0,0.0002986,2]
[422002473,1778442634000,-2000.0,0.00029776,2]
[422002476,1778442634000,-500.0,0.00031069,30]
[422002479,1778442634000,-200.0,0.00031376,2]
[422002477,1778442634000,-503.0,0.0003107,8]
[422002478,1778442634000,-441.05,0.00031368,2]
[422002475,1778442634000,-155.0,0.00030527,30]
[422002483,1778442634000,-5000.0,0.00031765,2]
[422002493,1778442634000,-1480.024,0.00033665,36]
[422002494,1778442634000,-172.111,0.00033665,36]
[422002495,1778442634000,-155.0,0.00034527,30]
[422002482,1778442634000,-162.0,0.00031538,2]
[422002485,1778442634000,-5544.03232175,0.000322,2]
[422002484,1778442634000,-2054.0642032,0.00032166,2]
[422002486,1778442634000,-155.0,0.00032527,30]
[422002489,1778442634000,-1000.0,0.00033,2]
[422002490,1778442634000,-314.0,0.00033,2]
[422002488,1778442634000,-748.0,0.00033,2]
[422002487,1778442634000,-168.95,0.00032855,120]
[422002491,1778442634000,-503.0,0.00033294,11]
[422002492,1778442634000,-155.0,0.00033527,30]
[422002496,1778442634000,-4091.89537954,0.00034729,21]
[422002498,1778442634000,-5544.03232175,0.000351,2]
[422002499,1778442634000,-1500.0,0.000352,7]
[422002500,1778442634000,-231.5748294,0.00035202,14]
[422002444,1778442634000,-150.0,0.00026849,2]
[422002472,1778442634000,-160.22,0.00029767,2]
[422002471,1778442634000,-5544.03232175,0.000293,2]
[422002497,1778442634000,-2054.0642032,0.00035078,2]
[422002467,1778442634000,-190.0,0.00027818,2]
[422002470,1778442634000,-2054.0642032,0.00029255,2]
[422002440,1778442634000,-152.0,0.00025996,2]
[422002438,1778442634000,-3636.78,0.00025786,2]
[422002443,1778442634000,-503.0,0.00026621,4]
[422002441,1778442634000,-2054.0642032,0.00026344,2]
[422002442,1778442634000,-5544.03232175,0.00026399,2]
[422002449,1778442634000,-500.0,0.00027123,7]
[422002447,1778442634000,-500.0,0.00027123,7]
[422002448,1778442634000,-500.0,0.00027123,7]
[422002457,1778442634000,-1122.41,0.00027397,10]
[422002451,1778442634000,-637.83327204,0.00027123,7]
[422002450,1778442634000,-500.0,0.00027123,7]
[422002455,1778442634000,-200.0,0.00027397,2]
[422002454,1778442634000,-200.0,0.00027397,2]
[422002436,1778442634000,-740.37,0.00025786,2]
[422002453,1778442634000,-200.0,0.00027397,2]
[422002452,1778442634000,-2000.0,0.00027295,2]
[422002468,1778442634000,-150.0,0.00028192,2]
[422002461,1778442634000,-200.0,0.00027497,2]
[422002462,1778442634000,-200.0,0.00027497,2]
[422002463,1778442634000,-305.7658887,0.00027597,2]
[422002459,1778442634000,-779.45,0.00027397,10]
[422002466,1778442634000,-150.0,0.00027818,2]
[422002465,1778442634000,-272.0,0.00027818,2]
[422002460,1778442634000,-200.0,0.00027497,2]
[422002469,1778442634000,-503.0,0.00028845,6]
[422002456,1778442634000,-655.48,0.00027397,10]
[422002458,1778442634000,-935.35,0.00027397,10]
[422002464,1778442634000,-500.0,0.000278,7]
[422002545,1778442635000,-732.05774517,0.00036973,2]
[422002542,1778442635000,-709.33744722,0.00036973,2]
[422002544,1778442635000,-598.10714269,0.00036973,2]
[422002543,1778442635000,-853.32651933,0.00036973,2]
[422002536,1778442635000,-150.0,0.00036821,7]
[422002546,1778442635000,-1794.48916065,0.00036973,2]
[422002533,1778442635000,-150.0,0.00036708,7]
[422002532,1778442635000,-150.0,0.00036691,7]
[422002529,1778442635000,-150.0,0.00036562,7]
[422002541,1778442635000,-150.0,0.00036951,7]
[422002537,1778442635000,-150.0,0.00036886,7]
[422002531,1778442635000,-150.0,0.00036639,21]
[422002559,1778442635000,-150.0,0.00037321,7]
[422002538,1778442635000,-150.0,0.00036903,7]
[422002540,1778442635000,-250.0,0.00036928,7]
[422002547,1778442635000,-526.35006308,0.00036973,2]
[422002548,1778442635000,-150.0,0.00036976,7]
[422002550,1778442635000,-150.0,0.0003708,7]
[422002552,1778442635000,-150.0,0.00037177,7]
[422002555,1778442635000,-287.09,0.00037256,2]
[422002558,1778442635000,-150.0,0.00037275,7]
[422002551,1778442635000,-150.0,0.00037145,7]
[422002549,1778442635000,-150.0,0.00037015,7]
[422002553,1778442635000,-150.0,0.0003721,7]
[422002554,1778442635000,-150.0,0.00037244,7]
[422002530,1778442635000,-150.0,0.00036626,7]
[422002539,1778442635000,-150.0,0.00036903,7]
[422002528,1778442635000,-150.0,0.00036538,7]
[422002511,1778442635000,-150.0,0.00036173,7]
[422002526,1778442635000,-155.0,0.00036527,30]
[422002557,1778442635000,-150.0,0.00037269,7]
[422002501,1778442635000,-287.09,0.00035482,2]
[422002502,1778442635000,-503.0,0.00035518,13]
[422002507,1778442635000,-150.0,0.00036173,7]
[422002505,1778442635000,-150.0,0.00036173,7]
[422002503,1778442635000,-155.0,0.00035527,30]
[422002506,1778442635000,-216.83912455,0.00036173,7]
[422002504,1778442635000,-150.0,0.00036173,7]
[422002508,1778442635000,-150.0,0.00036173,7]
[422002510,1778442635000,-150.0,0.00036173,7]
[422002522,1778442635000,-287.09,0.00036369,2]
[422002520,1778442635000,-150.0,0.00036302,7]
[422002527,1778442635000,-150.0,0.00036538,7]
[422002521,1778442635000,-150.0,0.00036367,7]
[422002512,1778442635000,-150.0,0.00036173,7]
[422002518,1778442635000,-150.0,0.00036237,7]
[422002513,1778442635000,-150.0,0.00036173,7]
[422002514,1778442635000,-150.0,0.00036173,7]
[422002515,1778442635000,-201.69859976,0.00036173,7]
[422002517,1778442635000,-150.0,0.00036173,7]
[422002516,1778442635000,-150.0,0.00036173,7]
[422002519,1778442635000,-5775.9,0.0003628,2]
[422002524,1778442635000,-150.0,0.00036441,7]
[422002534,1778442635000,-150.0,0.00036747,7]
[422002523,1778442635000,-150.0,0.00036432,7]
[422002525,1778442635000,-150.0,0.00036497,7]
[422002509,1778442635000,-150.0,0.00036173,7]
[422002556,1778442635000,-150.0,0.00037269,7]
[422002535,1778442635000,-150.0,0.00036756,7]
[422002570,1778442635000,-150.0,0.00037664,7]
[422002602,1778442635000,-150.0,0.00038312,7]
[422002591,1778442635000,-150.0,0.00038048,7]
[422002594,1778442635000,-287.09,0.00038143,2]
[422002593,1778442635000,-150.0,0.00038117,7]
[422002595,1778442635000,-250.0,0.00038162,5]
[422002597,1778442635000,-150.0,0.00038182,7]
[422002601,1778442635000,-183.40202408,0.00038291,5]
[422002596,1778442635000,-150.0,0.00038182,7]
[422002599,1778442635000,-436.0956,0.00038221,30]
[422002600,1778442635000,-150.0,0.00038247,7]
[422002598,1778442635000,-150.0,0.00038182,7]
[422002610,1778442635000,-500.0,0.00038356,2]
[422002592,1778442635000,-150.0,0.00038053,7]
[422002614,1778442635000,-500.0,0.00038356,2]
[422002607,1778442635000,-500.0,0.00038356,2]
[422002605,1778442635000,-500.0,0.00038356,60]
[422002608,1778442635000,-500.0,0.00038356,2]
[422002611,1778442635000,-500.0,0.00038356,2]
[422002613,1778442635000,-500.0,0.00038356,2]
[422002604,1778442635000,-170.5351,0.00038351,2]
[422002615,1778442635000,-500.0,0.00038356,2]
[422002609,1778442635000,-500.0,0.00038356,2]
[422002612,1778442635000,-500.0,0.00038356,2]
[422002617,1778442635000,-574.41187752,0.00038356,2]
[422002616,1778442635000,-500.0,0.00038356,2]
[422002560,1778442635000,-150.0,0.00037339,7]
[422002606,1778442635000,-600.0,0.00038356,60]
[422002589,1778442635000,-1021.9106744,0.00038032,2]
[422002603,1778442635000,-150.0,0.00038316,7]
[422002587,1778442635000,-178.3723865,0.00038032,2]
[422002590,1778442635000,-14694.6627987,0.00038032,2]
[422002561,1778442635000,-150.0,0.00037404,7]
[422002563,1778442635000,-150.0,0.00037512,7]
[422002564,1778442635000,-150.0,0.00037534,7]
[422002566,1778442635000,-500.0,0.00037614,5]
[422002568,1778442635000,-150.0,0.00037634,7]
[422002569,1778442635000,-150.0,0.00037634,7]
[422002565,1778442635000,-150.0,0.00037599,7]
[422002567,1778442635000,-150.0,0.00037614,5]
[422002571,1778442635000,-150.0,0.00037728,7]
[422002574,1778442635000,-500.7987881,0.00037743,5]
[422002573,1778442635000,-500.0,0.00037743,5]
[422002575,1778442635000,-150.0,0.0003778,7]
[422002572,1778442635000,-503.0,0.00037742,15]
[422002562,1778442635000,-150.0,0.00037469,7]
[422002583,1778442635000,-150.0,0.00038,7]
[422002576,1778442635000,-150.0,0.00037793,7]
[422002577,1778442635000,-150.0,0.00037858,7]
[422002579,1778442635000,-150.0,0.00037923,7]
[422002580,1778442635000,-500.0,0.00037979,2]
[422002618,1778442635000,-500.0,0.00038356,2]
[422002585,1778442635000,-5544.03232175,0.00038,2]
[422002582,1778442635000,-2054.0642032,0.00037989,2]
[422002584,1778442635000,-150.0,0.00038,7]
[422002578,1778442635000,-150.0,0.00037895,7]
[422002588,1778442635000,-11276.7314817,0.00038032,2]
[422002581,1778442635000,-150.0,0.00037988,7]
[422002586,1778442635000,-5328.2175094,0.00038032,2]
[422002662,1778442636000,-150.0,0.00039155,7]
[422002658,1778442636000,-150.0,0.0003909,7]
[422002647,1778442636000,-2833.43317971,0.00038799,2]
[422002663,1778442636000,-600.0,0.00039178,60]
[422002659,1778442636000,-150.0,0.00039096,7]
[422002654,1778442636000,-150.0,0.0003896,7]
[422002645,1778442636000,-1099.5765,0.00038732,2]
[422002655,1778442636000,-150.0,0.00039025,7]
[422002657,1778442636000,-150.0,0.00039043,7]
[422002656,1778442636000,-287.09,0.0003903,2]
[422002653,1778442636000,-2000.0,0.000389,7]
[422002664,1778442636000,-150.0,0.00039187,7]
[422002661,1778442636000,-150.0,0.0003912,7]
[422002660,1778442636000,-150.0,0.00039096,7]
[422002676,1778442636000,-150.0,0.00039608,7]
[422002667,1778442636000,-150.0,0.00039284,7]
[422002675,1778442636000,-150.0,0.00039544,7]
[422002668,1778442636000,-170.5351,0.0003931,2]
[422002677,1778442636000,-150.0,0.00039618,7]
[422002666,1778442636000,-450.0,0.00039258,5]
[422002669,1778442636000,-150.0,0.00039349,7]
[422002670,1778442636000,-150.0,0.00039388,7]
[422002671,1778442636000,-150.0,0.00039414,7]
[422002673,1778442636000,-150.0,0.00039461,7]
[422002672,1778442636000,-150.0,0.00039461,7]
[422002674,1778442636000,-150.0,0.00039479,7]
[422002678,1778442636000,-150.0,0.00039656,7]
[422002665,1778442636000,-150.0,0.00039219,7]
[422002649,1778442636000,-201.38039325,0.00038821,78]
[422002627,1778442636000,-403.84885926,0.00038356,2]
[422002644,1778442636000,-1253.284,0.00038732,2]
[422002680,1778442636000,-166.66,0.0003968,2]
[422002628,1778442636000,-500.0,0.00038356,2]
[422002619,1778442636000,-500.0,0.00038356,2]
[422002625,1778442636000,-500.0,0.00038356,2]
[422002620,1778442636000,-500.0,0.00038356,2]
[422002626,1778442636000,-500.0,0.00038356,2]
[422002624,1778442636000,-500.0,0.00038356,2]
[422002621,1778442636000,-500.0,0.00038356,2]
[422002623,1778442636000,-500.0,0.00038356,2]
[422002629,1778442636000,-204.23738929,0.00038356,2]
[422002631,1778442636000,-150.0,0.00038365,7]
[422002630,1778442636000,-150.0,0.00038365,7]
[422002639,1778442636000,-150.0,0.00038636,7]
[422002642,1778442636000,-150.0,0.0003873,7]
[422002634,1778442636000,-150.0,0.00038469,7]
[422002632,1778442636000,-150.0,0.00038377,7]
[422002637,1778442636000,-150.0,0.00038571,7]
[422002635,1778442636000,-150.0,0.00038506,7]
[422002638,1778442636000,-150.0,0.00038584,7]
[422002636,1778442636000,-161.0,0.00038538,2]
[422002641,1778442636000,-350.0,0.0003871,5]
[422002652,1778442636000,-150.0,0.00038895,7]